bitfinex/quotes_ETHUSD_20250406
["timestamp","ask_amount","ask_price","bid_price","bid_amount"]
[1743962201748,8.989,1688.6,1688.1,3.0]
[1743962201920,8.989,1688.6,1688.1,7.1465]
[1743962202126,1.5187,1688.5,1687.6,4.562683]
[1743962202322,1.5187,1688.5,1687.8,4.14729]
[1743962202560,1.5187,1688.5,1687.9,4.14705]
[1743962202860,1.5187,1688.5,1687.9,4.14715]
[1743962203058,1.5187,1688.5,1687.8,4.14725]
[1743962203450,1.5187,1688.5,1687.7,3.0]
[1743962203751,4.5187,1688.5,1687.6,8.2954]
[1743962204055,0.45187,1688.4,1687.7,4.14764]
[1743962204270,1.5187,1688.3,1687.5,8.29615]
[1743962204464,10.5047,1688.3,1687.7,4.14765]
[1743962204635,1.5187,1688.1,1687.4,4.14832]
[1743962204961,1.5187,1688.1,1687.5,4.14799]
[1743962204962,42.641,1688.0,1687.5,4.14799]
[1743962205156,42.641,1688.0,1687.5,4.977612]
[1743962205368,42.641,1688.0,1687.8,4.14726]
[1743962205521,42.641,1688.0,1687.7,8.29516]
[1743962205720,42.641,1688.0,1687.8,4.14725]
[1743962205955,42.641,1688.0,1687.9,4.14716]
[1743962206156,10.5037,1688.4,1687.9,0.829441]
[1743962206365,8.985,1688.3,1687.8,3.0]
[1743962206564,8.985,1688.3,1687.7,6.39535938]
[1743962206565,8.985,1688.3,1687.7,5.84535938]
[1743962206868,1.5991,1688.2,1687.4,9.99372938]
[1743962207040,1.5991,1688.2,1687.4,9.99364938]
[1743962207528,1.5991,1688.2,1687.4,9.99356938]
[1743962207859,2.65751,1688.2,1687.6,3.0]
[1743962208759,1.5991,1688.2,1687.7,4.14763]
[1743962208957,8.983,1688.1,1687.6,7.14787]
[1743962209163,8.983,1688.1,1687.8,4.14719]
[1743962209364,8.983,1688.1,1687.8,3.0]
[1743962209562,8.983,1688.1,1687.8,7.1473]
[1743962209729,8.983,1688.1,1687.9,4.147]
[1743962209932,1.5991,1688.2,1687.8,4.29926594]
[1743962210235,1.5991,1688.2,1687.8,3.0]
[1743962210433,1.5991,1688.2,1687.5,3.0]
[1743962210845,1.5991,1688.2,1687.6,4.14778]
[1743962211168,1.5991,1688.2,1687.5,4.14804]
[1743962211459,1.5991,1688.2,1687.6,3.0]
[1743962211845,1.5991,1688.2,1687.5,3.0]
[1743962212264,1.5991,1688.2,1687.5,7.14804]
[1743962212678,1.5991,1688.2,1687.8,4.14729]
[1743962212859,1.5991,1688.2,1687.6,8.29551]
[1743962213166,8.979,1688.1,1687.6,4.14788]
[1743962213540,8.979,1688.1,1687.5,10.12145907]
[1743962213751,8.979,1688.1,1687.6,4.01214591]
[1743962213953,8.979,1688.1,1687.6,3.0]
[1743962214267,0.42304835,1688.0,1687.6,3.0]
[1743962214482,8.979,1688.1,1687.3,7.14862]
[1743962214483,0.42304835,1687.9,1687.3,7.14862]
[1743962214765,0.42304835,1687.9,1687.5,3.0]
[1743962215063,0.42304835,1688.0,1687.3,4.14846]
[1743962215234,1.5711,1687.9,1687.3,4.14846]
[1743962215436,0.42304835,1687.8,1687.3,7.14846]
[1743962215650,8.976,1687.7,1687.3,7.14846]
[1743962215862,1.5711,1687.9,1687.3,7.14846]
[1743962216060,8.976,1687.8,1687.3,7.14861]
[1743962216260,1.5711,1687.7,1687.3,8.86278494]
[1743962216451,1.5711,1687.7,1687.4,4.14819]
[1743962216653,8.976,1687.8,1687.5,4.14807]
[1743962217173,8.976,1687.8,1687.3,3.0]
[1743962217671,7.6348,1687.7,1686.9,4.14947]
[1743962217839,8.05758255,1687.7,1686.8,1.60807587]
[1743962218040,13.96181589,1687.7,1687.0,4.14929]
[1743962218255,0.42278255,1687.6,1687.0,4.14929]
[1743962218458,0.42278255,1687.6,1687.1,4.14903]
[1743962218894,7.6348,1687.7,1687.0,4.14922]
[1743962219259,7.6348,1687.7,1687.3,4.1485]
[1743962219559,8.973,1687.6,1686.9,4.1495]
[1743962219996,8.973,1687.6,1686.8,9.99520938]
[1743962219997,1.6348,1687.5,1686.8,9.99520938]
[1743962220303,1.6348,1687.5,1687.0,8.29839]
[1743962220506,1.6348,1687.5,1687.1,0.05927268]
[1743962220659,1.6348,1687.5,1687.0,7.14936]
[1743962220862,1.6348,1687.5,1686.6,4.15033]
[1743962221162,1.6348,1687.3,1686.7,3.0]
[1743962221598,7.6348,1687.2,1686.5,2.01832591]
[1743962221799,1.6348,1687.0,1686.1,4.15149]
[1743962222092,1.6348,1686.8,1686.5,4.1506]
[1743962222492,1.6348,1686.8,1686.7,4.15011]
[1743962222807,8.972,1686.9,1686.6,4.15018]
[1743962223096,8.972,1686.9,1686.8,4.14986]
[1743962223263,8.972,1686.9,1686.8,13.54521938]
[1743962223464,16.6048,1687.4,1687.2,4.14868]
[1743962223675,16.6048,1687.4,1686.9,4.14952]
[1743962223860,5.80474545,1687.1,1686.8,5.84535938]
[1743962224057,5.80474545,1687.1,1687.0,4.14937]
[1743962224384,5.80474545,1687.1,1687.0,7.14937]
[1743962224782,5.80474545,1687.1,1687.0,3.0]
[1743962225167,5.80474545,1687.1,1686.8,14.14488938]
[1743962225374,5.80474545,1687.1,1686.9,4.14961]
[1743962225572,5.80474545,1687.1,1686.8,4.14965]
[1743962225803,5.80474545,1687.1,1686.8,8.29937]
[1743962226194,5.80474545,1687.1,1686.8,4.14965]
[1743962226398,5.80474545,1687.1,1686.9,4.14947]
[1743962226907,16.6048,1687.4,1686.9,4.14947]
[1743962227275,16.6048,1687.4,1686.9,4.14959]
[1743962227807,16.6048,1687.4,1686.9,4.1496]
[1743962228173,18.26528,1687.4,1686.8,4.14976]
[1743962228404,16.6048,1687.4,1687.1,4.14901]
[1743962228605,16.6048,1687.4,1686.9,10.0542194]
[1743962228804,16.6048,1687.4,1686.8,7.14966]
[1743962229010,16.6048,1687.4,1687.0,4.14927]
[1743962229486,16.6048,1687.4,1686.9,4.14962]
[1743962229691,16.6048,1687.4,1686.9,4.14952]
[1743962230001,16.6048,1687.4,1687.0,4.14928]
[1743962230202,16.6048,1687.4,1686.9,4.14952]
[1743962230777,5.80474545,1687.3,1687.0,4.14937]
[1743962231106,5.80474545,1687.3,1686.8,7.14985]
[1743962231309,8.0457,1687.3,1686.6,4.15026]
[1743962231495,8.0457,1687.3,1686.7,7.15007]
[1743962231809,1.6348,1687.2,1686.1,9.99681938]
[1743962231971,1.5107,1687.0,1686.2,4.15125]
[1743962232178,1.5107,1687.0,1686.1,9.99687938]
[1743962232406,1.5107,1687.0,1686.3,4.15098]
[1743962233108,1.5107,1687.0,1686.5,4.15039]
[1743962233284,1.5107,1687.0,1686.7,4.14995]
[1743962233489,1.5107,1687.0,1686.6,4.15035]
[1743962233686,1.5107,1687.0,1686.5,7.15058]
[1743962233878,1.5107,1687.0,1686.5,7.15047]
[1743962234391,5.80474545,1686.8,1686.5,3.0]
[1743962234578,14.76674545,1686.8,1686.5,3.0]
[1743962234780,1.5107,1686.7,1686.2,4.15134]
[1743962235097,7.5107,1686.7,1686.2,4.15124]
[1743962235610,7.5107,1686.7,1686.1,5.84535938]
[1743962235979,7.5107,1686.7,1686.0,7.15174]
[1743962236203,9.886112,1686.7,1686.0,4.15174]
[1743962236483,1.5107,1686.6,1685.8,9.99755938]
[1743962236700,1.5107,1686.4,1685.6,4.15271]
[1743962236901,1.5184,1686.2,1685.2,4.15361]
[1743962237086,1.5184,1686.0,1685.0,4.15424]
[1743962237290,1.5184,1686.0,1685.0,4.985077]
[1743962237291,1.5184,1685.8,1685.0,4.985077]
[1743962237480,7.5184,1685.8,1685.3,4.15344]
[1743962237998,7.5184,1685.8,1685.1,5.84535938]
[1743962238210,8.27024,1685.8,1685.1,9.99922938]
[1743962238400,8.27024,1685.8,1685.2,4.15371]
[1743962239132,8.27024,1685.8,1685.1,9.99922938]
[1743962239718,1.5184,1685.7,1684.8,10.00013938]
[1743962240024,1.5184,1685.5,1684.6,4.15527]
[1743962240181,1.5184,1685.3,1684.7,4.15502]
[1743962240381,3.16614,1685.3,1684.6,4.15517]
[1743962240894,3.16614,1685.3,1684.6,8.31029]
[1743962241090,1.5184,1685.3,1684.6,3.0]
[1743962241294,1.5184,1685.3,1685.0,4.1542]
[1743962241485,8.959,1685.4,1685.2,3.0]
[1743962241828,42.679,1685.8,1685.3,7.15356]
[1743962242122,42.679,1685.8,1685.6,4.15267]
[1743962242417,42.679,1685.8,1685.7,4.15257]
[1743962242718,8.96,1685.9,1685.8,4.15233]
[1743962243081,8.96,1685.9,1685.7,7.15257]
[1743962243283,8.96,1685.9,1685.7,7.15241]
[1743962243494,8.96,1685.9,1685.8,4.15233]
[1743962243692,8.96,1685.9,1685.7,7.15241]
[1743962243926,8.96,1685.9,1685.7,3.0]
[1743962244419,8.96,1685.9,1685.8,4.15233]
[1743962245390,8.96,1685.9,1685.8,7.15233]
[1743962245922,8.96,1685.9,1685.6,7.15281]
[1743962246422,8.96,1685.9,1685.7,4.15249]
[1743962246610,8.96,1685.9,1685.8,4.15233]
[1743962246805,8.96,1685.9,1685.7,4.15249]
[1743962247110,9.856,1685.9,1685.3,4.15353]
[1743962247310,1.5184,1685.8,1685.2,9.99914938]
[1743962247627,1.5184,1685.7,1684.9,9.99988938]
[1743962247798,1.5184,1685.5,1685.0,4.15416]
[1743962248009,1.5184,1685.5,1685.2,4.15372]
[1743962248493,1.5184,1685.5,1685.0,8.30848]
[1743962248494,2.27024,1685.5,1685.0,8.30848]
[1743962248698,2.27024,1685.5,1684.9,9.99986938]
[1743962249041,2.27024,1685.5,1684.9,5.84535938]
[1743962249331,2.27024,1685.5,1685.0,4.15412]
[1743962249627,2.27024,1685.5,1684.9,9.99982938]
[1743962249924,2.27024,1685.5,1685.0,4.15427]
[1743962250285,2.27024,1685.5,1685.1,4.15404]
[1743962250286,1.5184,1685.5,1685.1,4.15404]
[1743962250485,10.4694,1685.5,1685.2,9.99911938]
[1743962250909,1.5184,1685.5,1685.2,9.99902938]
[1743962251236,1.5184,1685.5,1685.3,3.0]
[1743962251521,3.16544,1685.5,1685.0,3.0]
[1743962252427,3.16544,1685.5,1685.0,7.15428]
[1743962252595,3.16544,1685.5,1685.0,3.0]
[1743962253318,1.5184,1685.5,1685.3,4.15333]
[1743962253519,8.80474545,1686.3,1685.6,4.15264]
[1743962253520,8.949,1686.0,1685.6,4.15264]
[1743962254424,8.949,1686.0,1685.6,3.0]
[1743962254627,8.949,1686.0,1685.3,4.15335]
[1743962254628,8.949,1686.0,1685.2,5.84535938]
[1743962254927,1.5022,1685.8,1685.2,5.84535938]
[1743962255122,1.5022,1685.8,1685.3,4.15349]
[1743962255491,1.5022,1685.8,1685.2,5.84535938]
[1743962256593,1.5022,1685.8,1685.1,3.0]
[1743962257407,1.5022,1685.8,1684.9,5.84535938]
[1743962257724,6.0,1685.7,1685.0,3.0]
[1743962257904,1.6434,1685.5,1684.7,4.15488]
[1743962258225,8.945,1685.4,1684.6,10.43922835]
[1743962258427,1.6434,1685.3,1684.7,3.0]
[1743962258598,7.6434,1685.3,1684.6,10.00061938]
[1743962258931,7.6434,1685.3,1684.7,3.0]
[1743962259127,0.76434,1685.2,1684.7,7.15489]
[1743962259549,0.76434,1685.2,1684.7,3.0]
[1743962260096,0.76434,1685.2,1684.7,7.15498]
[1743962260293,0.76434,1685.2,1684.7,3.0]
[1743962260499,7.6434,1685.3,1684.9,5.84535938]
[1743962260699,7.6434,1685.3,1684.6,8.84535938]
[1743962260900,7.6434,1685.3,1684.6,13.00043938]
[1743962261639,7.6434,1685.3,1684.6,8.84535938]
[1743962261932,0.76434,1685.2,1684.6,8.84535938]
[1743962262097,0.76434,1685.2,1684.6,13.00053938]
[1743962262294,7.6434,1685.3,1684.8,4.15476]
[1743962262703,7.6434,1685.3,1684.9,4.15453]
[1743962262898,7.6434,1685.3,1685.0,4.15426]
[1743962263414,6.0,1685.3,1685.1,4.15393]
[1743962263609,1.579,1685.5,1685.0,4.15426]
[1743962263813,1.579,1685.5,1685.0,4.15415]
[1743962264107,1.579,1685.5,1685.0,4.35928806]
[1743962264311,6.0,1685.8,1685.0,4.35928806]
[1743962264312,6.0,1685.8,1685.5,4.15295]
[1743962264521,7.579,1685.9,1685.5,5.84535938]
[1743962264814,7.579,1685.9,1685.6,4.15282]
[1743962265021,5.80474545,1685.7,1685.6,4.15282]
[1743962265809,5.80474545,1685.7,1685.5,9.99828938]
[1743962266049,5.80474545,1685.7,1685.5,5.84535938]
[1743962266454,5.80474545,1685.7,1685.6,7.15282]
[1743962266825,5.80474545,1685.7,1685.6,7.70282]
[1743962267553,5.80474545,1685.7,1685.6,7.15282]
[1743962268244,5.80474545,1685.7,1685.6,3.0]
[1743962268449,5.80474545,1685.7,1685.6,7.15282]
[1743962268749,5.80474545,1685.7,1685.6,3.0]
[1743962269150,5.80474545,1685.7,1685.5,5.84535938]
[1743962269963,7.579,1685.9,1685.5,9.99838938]
[1743962270262,7.579,1685.9,1685.5,0.05932683]
[1743962270442,7.579,1685.9,1685.2,4.15375]
[1743962270625,7.579,1685.9,1685.3,4.15345]
[1743962270947,7.579,1685.9,1685.2,9.99910938]
[1743962271247,7.579,1685.9,1685.3,4.15344]
[1743962271427,0.7579,1685.8,1685.2,9.99915938]
[1743962271624,0.7579,1685.8,1685.2,9.99897938]
[1743962271827,0.7579,1685.8,1685.2,5.84535938]
[1743962272031,0.7579,1685.8,1685.2,9.99906938]
[1743962272229,0.7579,1685.8,1685.3,4.15354]
[1743962272625,0.7579,1685.8,1685.2,9.99906938]
[1743962272841,0.7579,1685.8,1685.2,10.05838312]
[1743962273219,0.7579,1685.8,1685.2,9.99904938]
[1743962273751,1.6532,1685.7,1685.2,5.84535938]
[1743962273937,8.928,1685.6,1685.2,5.84535938]
[1743962274139,9.98612,1685.6,1685.1,3.0]
[1743962274341,1.6532,1685.4,1685.0,5.84535938]
[1743962274534,1.6532,1685.4,1684.7,4.15503]
[1743962274535,1.6532,1685.4,1684.7,10.45531746]
[1743962274851,6.0,1685.3,1685.0,9.99946938]
[1743962275056,6.0,1685.3,1685.1,3.05934321]
[1743962275356,7.6532,1685.4,1685.1,3.0]
[1743962275542,8.41852,1685.4,1685.1,3.0]
[1743962275726,8.41852,1685.4,1684.8,7.15462]
[1743962276117,8.41852,1685.4,1684.8,3.0]
[1743962277553,1.578,1685.2,1684.8,3.0]
[1743962278121,6.0,1685.1,1684.8,3.0]
[1743962278322,9.523,1685.0,1684.5,7.15552]
[1743962278525,1.578,1684.9,1684.4,6.27945584]
[1743962278723,6.0,1684.8,1684.1,5.84535938]
[1743962278966,1.578,1684.7,1683.8,10.00260938]
[1743962279259,1.578,1684.6,1683.8,10.00260938]
[1743962279448,6.0,1684.5,1683.8,5.84535938]
[1743962279646,6.0,1684.5,1683.6,4.15773]
[1743962279647,1.578,1684.3,1683.6,4.60268333]
[1743962279944,7.578,1684.3,1683.8,5.84535938]
[1743962280142,7.578,1684.3,1683.9,4.21635894]
[1743962280327,7.578,1684.3,1684.0,4.15661]
[1743962280529,7.578,1684.3,1684.1,3.0]
[1743962280839,7.578,1684.3,1683.9,7.15691]
[1743962281143,7.578,1684.3,1683.9,3.0]
[1743962281356,6.0,1684.2,1683.5,5.84535938]
[1743962281539,1.578,1684.1,1683.2,5.84535938]
[1743962281724,42.717,1684.0,1683.2,5.84535938]
[1743962281928,1.578,1683.9,1683.2,5.84535938]
[1743962282229,1.578,1683.7,1683.0,0.43965838]
[1743962282430,6.0,1683.6,1683.2,5.84535938]
[1743962282626,6.0,1683.7,1683.6,4.15775]
[1743962282873,44.295,1684.0,1683.7,4.15748]
[1743962283174,42.717,1684.0,1683.8,5.84535938]
[1743962284062,8.92,1684.3,1684.2,4.15627]
[1743962284370,5.80474545,1684.3,1684.2,3.0]
[1743962284877,6.38522,1684.3,1684.1,5.84535938]
[1743962285173,6.38522,1684.3,1683.9,3.0]
[1743962285472,6.38522,1684.3,1683.7,3.0]
[1743962285627,1.578,1684.2,1683.7,8.84535938]
[1743962285824,1.578,1684.2,1683.6,0.44380727]
[1743962286029,1.578,1684.0,1683.4,5.84535938]
[1743962286260,6.0,1683.9,1683.2,4.15873]
[1743962286467,8.919,1683.8,1683.2,4.15873]
[1743962286633,8.919,1683.8,1683.3,3.0]
[1743962286838,1.578,1683.6,1683.1,10.00433938]
[1743962287135,8.919,1683.8,1683.6,4.15774]
[1743962287352,6.0,1684.1,1684.0,4.15676]
[1743962287669,8.918,1684.3,1684.1,3.0]
[1743962288553,8.918,1684.3,1684.2,3.0]
[1743962289064,1.578,1684.2,1683.6,0.4554782]
[1743962289227,7.578,1684.2,1683.9,3.0]
[1743962289430,7.578,1684.2,1683.8,5.84535938]
[1743962289851,7.578,1684.2,1683.1,8.3177]
[1743962289852,6.0,1684.1,1683.2,5.79479]
[1743962290160,1.578,1684.0,1683.2,10.00404938]
[1743962290363,1.578,1684.0,1683.2,5.84535938]
[1743962290558,6.0,1683.9,1683.0,4.15922]
[1743962290769,2.178,1683.8,1683.0,4.15922]
[1743962291061,1.578,1683.6,1683.0,4.15912]
[1743962291430,1.578,1683.6,1683.0,4.15907]
[1743962291852,1.578,1683.6,1682.8,10.00506938]
[1743962292037,1.578,1683.6,1683.0,4.15914]
[1743962292229,1.578,1683.6,1683.1,5.84535938]
[1743962292437,1.578,1683.6,1682.8,6.29594982]
[1743962292626,1.578,1683.6,1682.8,5.84535938]
[1743962292830,1.578,1683.6,1682.9,3.0]
[1743962293066,1.6384,1683.4,1682.8,5.84535938]
[1743962293269,6.0,1683.3,1682.5,5.84535938]
[1743962293478,1.6384,1683.1,1682.2,10.00655938]
[1743962293676,1.6384,1683.1,1682.2,10.00642938]
[1743962293677,14.913,1683.0,1682.2,10.00642938]
[1743962293882,14.913,1683.0,1682.5,10.00572938]
[1743962294182,14.913,1683.0,1682.8,10.00496938]
[1743962294383,6.0,1683.0,1682.9,3.0]
[1743962294591,6.0,1683.0,1682.9,7.15948]
[1743962295184,6.0,1683.0,1682.9,3.0]
[1743962295880,6.0,1683.4,1683.0,4.159]
[1743962296077,6.0,1683.5,1682.9,3.45010062]
[1743962296470,1.6384,1683.4,1682.5,10.00561938]
[1743962296779,6.0,1683.3,1682.8,8.84535938]
[1743962296988,6.0,1683.3,1682.9,4.15937]
[1743962297143,14.91,1683.3,1682.9,4.15937]
[1743962297344,16.56484,1683.3,1682.8,9.29114068]
[1743962297579,16.56484,1683.3,1682.8,13.45075068]
[1743962297886,16.56484,1683.3,1682.8,8.84535938]
[1743962298182,14.91,1683.3,1682.9,4.15935]
[1743962298647,14.91,1683.3,1682.8,13.44831251]
[1743962298853,14.91,1683.3,1682.8,9.28860251]
[1743962299053,14.91,1683.3,1682.8,13.44819251]
[1743962299248,14.91,1683.3,1682.9,4.15948]
[1743962299479,1.5357,1683.2,1682.6,7.15999]
[1743962299676,1.5357,1683.1,1682.3,4.1608]
[1743962299878,1.5357,1683.1,1682.5,6.29709576]
[1743962300183,6.0,1683.0,1682.2,10.00655938]
[1743962300349,1.5357,1682.9,1681.7,4.1623]
[1743962300552,0.55,1683.2,1681.7,4.1623]
[1743962300553,1.5357,1682.7,1682.0,4.16161]
[1743962300752,8.907,1682.6,1682.0,4.16161]
[1743962300963,0.8907,1682.5,1682.0,4.16161]
[1743962301163,1.5357,1682.3,1681.8,4.2216485]
[1743962301373,1.5357,1682.3,1681.9,4.16173]
[1743962301563,2.28927,1682.3,1681.8,4.16203]
[1743962301760,2.28927,1682.3,1681.8,4.16219]
[1743962301987,2.28927,1682.3,1681.8,8.32427]
[1743962302286,1.5357,1682.3,1681.9,4.22123279]
[1743962302493,1.5357,1682.3,1681.9,4.16173]
[1743962302983,1.5357,1682.3,1682.0,5.90480792]
[1743962303192,6.0,1682.4,1682.1,3.0]
[1743962303372,6.0,1682.4,1682.3,7.16097]
[1743962303558,6.0,1682.4,1682.3,3.0]
[1743962303959,16.4427,1682.6,1682.3,3.0]
[1743962304365,22.34693334,1682.6,1682.3,3.0]
[1743962305389,22.34693334,1682.6,1682.4,10.00591938]
[1743962305390,14.907,1682.6,1682.4,10.00591938]
[1743962305558,14.907,1682.6,1682.4,10.06536177]
[1743962305891,14.907,1682.6,1682.4,10.00591938]
[1743962306188,14.907,1682.6,1682.5,7.16047]
[1743962306353,8.907,1682.6,1682.5,7.16047]
[1743962306686,1.5357,1682.9,1682.5,7.16047]
[1743962306687,1.5357,1682.9,1682.5,3.0]
[1743962306891,2.57967,1682.9,1682.5,3.0]
[1743962307456,2.57967,1682.9,1682.5,7.16043]
[1743962307657,1.5357,1682.9,1682.5,7.16043]
[1743962307901,1.5357,1682.9,1682.5,3.0]
[1743962308072,1.5357,1682.9,1682.1,4.16144]
[1743962308884,1.5357,1682.9,1682.0,5.84535938]
[1743962309084,1.5357,1682.7,1682.0,5.84535938]
[1743962309286,1.5357,1682.5,1682.0,5.84535938]
[1743962309472,14.901,1682.4,1682.0,10.00688938]
[1743962310272,14.901,1682.4,1682.1,4.16144]
[1743962310471,14.901,1682.4,1682.1,4.16137]
[1743962310666,14.901,1682.4,1682.1,4.16133]
[1743962310884,14.901,1682.4,1682.1,4.16129]
[1743962311083,14.901,1682.4,1682.3,4.16097]
[1743962311690,8.901,1682.4,1682.3,13.00632938]
[1743962311891,1.5295,1682.7,1682.0,5.84535938]
[1743962312138,1.5295,1682.7,1682.0,10.00705938]
[1743962312866,1.5295,1682.7,1682.1,4.16141]
[1743962313188,6.0,1682.6,1682.0,10.00689938]
[1743962313394,6.0,1682.6,1682.1,4.16145]
[1743962313594,6.0,1682.6,1682.0,10.00689938]
[1743962313896,1.5456,1682.5,1682.1,4.16123]
[1743962314391,2.30016,1682.5,1682.1,4.16123]
[1743962314964,6.0,1682.4,1682.0,5.84535938]
[1743962316163,6.0,1682.4,1682.0,10.00700938]
[1743962316377,6.0,1682.4,1682.0,5.84535938]
[1743962316797,6.0,1682.4,1681.9,7.16177]
[1743962316798,6.0,1682.4,1681.9,3.0]
[1743962316997,0.6,1682.3,1681.9,3.0]
[1743962317196,8.895,1682.2,1681.7,5.84535938]
[1743962317396,1.5456,1682.1,1681.7,5.84535938]
[1743962317610,7.5456,1682.1,1681.5,4.16285]
[1743962317813,0.75456,1682.0,1681.5,4.16279]
[1743962317971,0.75456,1682.0,1681.6,4.16261]
[1743962318477,0.75456,1682.0,1681.4,7.47625938]
[1743962318674,0.75456,1682.0,1681.6,4.1626]
[1743962318869,6.75456,1682.0,1681.4,5.84535938]
[1743962319079,1.6661,1681.8,1681.6,4.16265]
[1743962319700,1.6661,1681.8,1681.6,4.16257]
[1743962319903,6.0,1682.0,1681.7,4.16227]
[1743962320603,6.0,1682.0,1681.5,10.00828938]
[1743962321396,6.0,1682.0,1681.6,4.16249]
[1743962321596,6.0,1682.0,1681.7,4.16235]
[1743962321801,6.0,1682.0,1681.7,8.32468]
[1743962321985,6.0,1682.0,1681.7,3.0]
[1743962322185,6.0,1682.0,1681.8,5.90481852]
[1743962322512,6.0,1682.0,1681.7,4.16243]
[1743962322876,1.6661,1682.1,1681.8,4.16213]
[1743962323080,1.6661,1682.1,1681.8,5.84535938]
[1743962323282,8.89,1682.2,1681.9,4.16194]
[1743962323485,7.6661,1682.6,1682.1,5.84535938]
[1743962323785,8.889,1682.5,1682.1,10.00664938]
[1743962324214,8.889,1682.5,1682.2,4.16115]
[1743962324411,16.5541,1682.6,1682.2,4.16115]
[1743962325009,18.20951,1682.6,1682.1,10.00680938]
[1743962325208,18.20951,1682.6,1682.1,10.00666938]
[1743962325514,16.5541,1682.6,1682.3,4.16086]
[1743962325917,16.5541,1682.6,1682.2,4.16097]
[1743962326610,16.5541,1682.6,1682.1,10.00678938]
[1743962326798,16.5541,1682.6,1682.1,6.29676477]
[1743962326999,18.20951,1682.6,1682.1,5.84535938]
[1743962327210,18.20951,1682.6,1682.1,10.00672938]
[1743962327592,18.20951,1682.6,1682.1,5.84535938]
[1743962327909,18.20951,1682.6,1682.1,10.00676938]
[1743962328113,16.5541,1682.6,1682.1,5.84535938]
[1743962328318,42.777,1682.8,1682.4,5.84535938]
[1743962328912,42.777,1682.8,1682.2,3.0]
[1743962329110,0.42467748,1682.7,1682.2,3.0]
[1743962329427,1.6661,1682.6,1682.1,6.30032752]
[1743962329813,1.6661,1682.6,1682.1,10.46178752]
[1743962330523,1.6661,1682.6,1682.1,5.84535938]
[1743962331522,0.42548116,1682.5,1682.1,5.84535938]
[1743962331929,1.6661,1682.6,1682.1,5.84535938]
[1743962332084,6.0,1682.4,1682.1,5.84535938]
[1743962332292,9.478,1682.3,1682.1,5.84535938]
[1743962333032,1.566,1682.2,1681.8,5.84535938]
[1743962333343,6.0,1682.6,1682.4,4.16054]
[1743962333494,50.343,1682.8,1682.5,5.84535938]
[1743962333692,5.0343,1682.7,1682.3,7.16096]
[1743962333890,1.566,1682.5,1681.9,1.5825]
[1743962334202,8.876,1682.4,1681.9,7.16191]
[1743962334896,14.876,1682.4,1681.9,3.0]
[1743962335123,1.4876,1682.3,1681.9,7.16185]
[1743962335638,1.4876,1682.3,1681.9,7.61463444]
[1743962337091,6.0,1682.4,1682.1,10.00659938]
[1743962337311,6.0,1682.4,1682.2,4.16111]
[1743962337537,6.0,1682.4,1682.2,4.22054894]
[1743962338033,14.872,1682.5,1682.3,4.16097]
[1743962338237,8.872,1682.5,1682.4,4.16072]
[1743962338650,14.67674545,1682.5,1682.4,7.16072]
[1743962339048,14.67674545,1682.5,1682.4,3.0]
[1743962339554,14.67674545,1682.5,1682.4,7.16072]
[1743962339759,14.67674545,1682.5,1682.4,3.0]
[1743962340825,17.23442,1682.5,1682.2,3.0]
[1743962341027,14.67674545,1682.5,1682.4,10.00607938]
[1743962341230,14.67674545,1682.5,1682.4,5.84535938]
[1743962341425,14.67674545,1682.5,1682.4,10.00607938]
[1743962341654,8.872,1682.5,1682.4,10.00607938]
[1743962342043,10.9,1682.6,1682.4,14.16679938]
[1743962342259,10.9,1682.6,1682.4,10.4593391]
[1743962342462,13.17047455,1682.6,1682.4,6.2986191]
[1743962342635,10.9,1682.6,1682.4,6.2986191]
[1743962342840,10.9,1682.6,1682.4,14.6197791]
[1743962343041,10.9,1682.6,1682.4,10.4591891]
[1743962344182,10.9,1682.6,1682.4,6.2986191]
[1743962344336,10.9,1682.6,1682.4,5.84535938]
[1743962344542,1.09,1682.5,1682.2,7.1612]
[1743962344954,16.70474545,1682.6,1682.2,7.1612]
[1743962345157,16.70474545,1682.6,1682.2,3.0]
[1743962345472,1.5575,1682.5,1682.1,5.84535938]
[1743962345843,1.5575,1682.5,1682.1,10.00664938]
[1743962346078,1.5575,1682.5,1682.1,14.16796938]
[1743962346264,1.5575,1682.5,1682.1,10.00664938]
[1743962346466,3.38372455,1682.5,1682.1,10.00664938]
[1743962346937,16.70474545,1682.6,1682.4,4.16059]
[1743962347137,16.70474545,1682.6,1682.4,10.00593938]
[1743962347333,16.70474545,1682.6,1682.5,4.16047]
[1743962348472,10.9,1682.6,1682.5,4.16047]
[1743962349379,10.9,1682.6,1682.4,10.46156518]
[1743962349583,10.9,1682.6,1682.4,6.30098518]
[1743962349810,10.9,1682.6,1682.4,10.46169518]
[1743962349995,10.9,1682.6,1682.4,14.62228518]
[1743962350307,10.9,1682.6,1682.5,4.16047]
[1743962350806,10.9,1682.6,1682.5,7.16047]
[1743962351008,10.9,1682.6,1682.5,8.92267452]
[1743962351704,10.9,1682.6,1682.5,10.57617452]
[1743962352009,10.3836,1683.6,1683.3,4.15847]
[1743962352165,1.5306,1683.6,1683.3,10.41967638]
[1743962352477,57.63,1683.7,1683.3,14.5979295]
[1743962352795,57.63,1683.7,1683.1,5.84535938]
[1743962353165,57.63,1683.7,1683.1,5.90476548]
[1743962353363,5.763,1683.6,1683.1,10.00429938]